[Event "RUS-ch Women Blitz 2019"]
[Site "Sochi"]
[Date "2019.10.17"]
[Round "3.9"]
[White "Ambartsumova, Karina"]
[Black "Charochkina, Daria"]
[Result "1/2-1/2"]
[ECO "A06"]
[WhiteElo "2341"]
[BlackElo "2355"]
[Annotator "NA"]
[PlyCount "99"]
[EventDate "2019.10.17"]
[EventType "swiss"]
[EventCountry "RUS"]
[SourceTitle "playchess.com"]
[Source "ChessBase"]
[SourceQuality "1"]
[TimeControl "180+2"]

1. Nf3 {[%emt 0:00:00]} d5 {[%emt 0:00:04]} 2. e3 {[%emt 0:00:00]} Nf6 {[%emt 0:00:02]} 3. c4 {[%emt 0:00:02]} c6 {[%emt 0:00:01]} 4. Nc3 {[%emt 0:00:02]} e6 {[%emt 0:00:01]} 5. b3 {[%emt 0:00:01]} Bd6 {[%emt 0:00:01]} 6. Bb2 {[%emt 0:00:01]} O-O {[%emt 0:00:07]} 7. Be2 {[%emt 0:00:02]} e5 {[%emt 0:00:18]} 8. cxd5 {[%emt 0:00:09]} cxd5 {[%emt 0:00:01]} 9. Nb5 {[%emt 0:00:13]} Nc6 {[%emt 0:00:01]} 10. Nxd6 {[%emt 0:00:51]} Qxd6 {[%emt 0:00:02]} 11. d4 {[%emt 0:00:47]} e4 {[%emt 0:00:01]} 12. Ne5 {[%emt 0:00:02]} Be6 {[%emt 0:00:15]} 13. Nxc6 {[%emt 0:00:09]} Qxc6 {[%emt 0:00:09]} 14. Rc1 {[%emt 0:00:02]} Qd7 {[%emt 0:00:01]} 15. O-O {[%emt 0:00:06]} Ne8 {[%emt 0:00:16]} 16. Ba3 {[%emt 0:00:04]} Nd6 {[%emt 0:00:00]} 17. Qd2 {[%emt 0:00:03]} Rfc8 {[%emt 0:00:20]} 18. Qb4 {[%emt 0:00:09]} Nf5 {[%emt 0:00:02]} 19. Bb5 {[%emt 0:00:03]} Qd8 {[%emt 0:00:01]} 20. Rxc8 {[%emt 0:00:20]} Rxc8 {[%emt 0:00:03]} 21. Rc1 {[%emt 0:00:02]} Rxc1+ {[%emt 0:00:07]} 22. Bxc1 {[%emt 0:00:02]} Qg5 {[%emt 0:00:03]} 23. Bf1 {[%emt 0:00:11]} Nh4 {[%emt 0:00:03]} 24. Kh1 {[%emt 0:00:05]} Qf5 {[%emt 0:00:22]} 25. Qd2 {[%emt 0:00:06]} h5 {[%emt 0:00:01]} 26. Ba3 {[%emt 0:00:03]} Qg4 {[%emt 0:00:06]} 27. Bd6 {[%emt 0:00:05]} Nf5 {[%emt 0:00:03]} 28. Bb8 {[%emt 0:00:01]} a6 {[%emt 0:00:10]} 29. h3 {[%emt 0:00:01]} Qg5 {[%emt 0:00:01]} 30. Qe1 {[%emt 0:00:09]} Qd8 {[%emt 0:00:05]} 31. Bh2 {[%emt 0:00:02]} g5 {[%emt 0:00:00]} 32. Qc3 {[%emt 0:00:03]} Qf6 {[%emt 0:00:03]} 33. Qc7 {[%emt 0:00:01]} Qe7 {[%emt 0:00:16]} 34. Qxe7 {[%emt 0:00:04]} Nxe7 {[%emt 0:00:01]} 35. Kg1 {[%emt 0:00:01]} Kf8 {[%emt 0:00:07]} 36. Bd6 {[%emt 0:00:01]} Ke8 {[%emt 0:00:01]} 37. Be2 {[%emt 0:00:01]} h4 {[%emt 0:00:03]} 38. Be5 {[%emt 0:00:02]} Ng8 {[%emt 0:00:18]} 39. Kf1 {[%emt 0:00:01]} f6 {[%emt 0:00:01]} 40. Bb8 {[%emt 0:00:01]} Ne7 {[%emt 0:00:02]} 41. Bd6 {[%emt 0:00:02]} Kd7 {[%emt 0:00:07]} 42. Ba3 {[%emt 0:00:04]} f5 {[%emt 0:00:10]} 43. Kg1 {[%emt 0:00:04]} g4 {[%emt 0:00:02]} 44. Kh2 {[%emt 0:00:01]} Ng8 {[%emt 0:00:02]} 45. g3 {[%emt 0:00:03]} hxg3+ {[%emt 0:00:03]} 46. fxg3 {[%emt 0:00:01]} gxh3 {[%emt 0:00:01]} 47. Bf1 {[%emt 0:00:03]} Nf6 {[%emt 0:00:03]} 48. Bxh3 {[%emt 0:00:01]} Ng4+ {[%emt 0:00:00]} 49. Bxg4 {[%emt 0:00:02]} fxg4 {[%emt 0:00:01]} 50. Kg2 1/2-1/2

[Event "RUS-ch Women Blitz 2019"]
[Site "Sochi"]
[Date "2019.10.17"]
[Round "3.11"]
[White "Chernyak, Viktoria"]
[Black "Bykova, Anastasia"]
[Result "0-1"]
[ECO "A07"]
[WhiteElo "2284"]
[BlackElo "2247"]
[Annotator "NA"]
[PlyCount "124"]
[EventDate "2019.10.17"]
[EventType "swiss"]
[EventCountry "RUS"]
[SourceTitle "playchess.com"]
[Source "ChessBase"]
[SourceQuality "1"]
[TimeControl "180+2"]

1. Nf3 {[%emt 0:00:00]} d5 {[%emt 0:00:00]} 2. g3 {[%emt 0:00:00]} c6 {[%emt 0:00:00]} 3. Bg2 {[%emt 0:00:01]} Nf6 {[%emt 0:00:01]} 4. O-O {[%emt 0:00:01]} Bg4 {[%emt 0:00:01]} 5. c4 {[%emt 0:00:03]} e6 {[%emt 0:00:01]} 6. b3 {[%emt 0:00:23]} Nbd7 {[%emt 0:00:02]} 7. Bb2 {[%emt 0:00:01]} Be7 {[%emt 0:00:01]} 8. d4 {[%emt 0:00:02]} O-O {[%emt 0:00:02]} 9. Nc3 {[%emt 0:00:01]} a5 {[%emt 0:00:05]} 10. h3 {[%emt 0:00:02]} Bh5 {[%emt 0:00:01]} 11. Rc1 {[%emt 0:00:12]} Qb6 {[%emt 0:00:04]} 12. Na4 {[%emt 0:00:14]} Qa6 {[%emt 0:00:01]} 13. g4 {[%emt 0:00:13]} Bg6 {[%emt 0:00:01]} 14. cxd5 {[%emt 0:00:12]} exd5 {[%emt 0:00:03]} 15. Nh4 {[%emt 0:00:07]} Rfe8 {[%emt 0:00:14]} 16. Nxg6 {[%emt 0:00:02]} hxg6 {[%emt 0:00:01]} 17. e3 {[%emt 0:00:01]} Bd6 {[%emt 0:00:06]} 18. Nc5 {[%emt 0:00:22]} Qa7 {[%emt 0:00:08]} 19. Nd3 {[%emt 0:00:09]} Qb6 {[%emt 0:00:09]} 20. Qc2 {[%emt 0:00:06]} Bb8 {[%emt 0:00:05]} 21. Rfe1 {[%emt 0:00:18]} Qc7 {[%emt 0:00:03]} 22. f4 {[%emt 0:00:01]} Qd8 {[%emt 0:00:26]} 23. Bf3 {[%emt 0:00:02]} Ne4 {[%emt 0:00:04]} 24. Qg2 {[%emt 0:00:09]} Qh4 {[%emt 0:00:05]} 25. Ne5 {[%emt 0:00:05]} Nf8 {[%emt 0:00:47]} 26. Re2 {[%emt 0:00:06]} Nd6 {[%emt 0:00:02]} 27. Ba3 {[%emt 0:00:04]} f6 {[%emt 0:00:03]} 28. Nd3 {[%emt 0:00:07]} Nb5 {[%emt 0:00:08]} 29. Bxf8 Kxf8 {[%emt 0:00:06]} 30. Rce1 {[%emt 0:00:22]} a4 {[%emt 0:00:03]} 31. bxa4 {[%emt 0:00:06]} Rxa4 {[%emt 0:00:01]} 32. Nc5 {[%emt 0:00:01]} Ra7 {[%emt 0:00:08]} 33. Nd7+ {[%emt 0:00:01]} Kg8 {[%emt 0:00:12]} 34. Nxb8 {[%emt 0:00:02]} Rxb8 {[%emt 0:00:01]} 35. Kh2 {[%emt 0:00:09]} Nd6 {[%emt 0:00:04]} 36. Rb1 {[%emt 0:00:06]} Rba8 {[%emt 0:00:02]} 37. Rbb2 {[%emt 0:00:04]} Re8 {[%emt 0:00:02]} 38. Rb6 {[%emt 0:00:09]} Nc8 {[%emt 0:00:17]} 39. Rb3 {[%emt 0:00:01]} Nd6 {[%emt 0:00:02]} 40. Rb6 {[%emt 0:00:01]} Nc8 {[%emt 0:00:12]} 41. Rb3 Nd6 42. Rb6 {[%emt 0:00:01]} Nc8 43. Rb3 Nd6 {[%emt 0:00:02]} 44. Rb6 {[%emt 0:00:01]} Rd8 {[%emt 0:00:11]} 45. Rb3 {[%emt 0:00:07]} Nc4 {[%emt 0:00:06]} 46. Rc3 {[%emt 0:00:05]} Kf8 {[%emt 0:00:05]} 47. e4 {[%emt 0:00:05]} dxe4 {[%emt 0:00:05]} 48. Rxe4 {[%emt 0:00:04]} Nd6 {[%emt 0:00:05]} 49. Re2 {[%emt 0:00:00]} Nb5 {[%emt 0:00:02]} 50. Rce3 {[%emt 0:00:04]} Nxd4 {[%emt 0:00:02]} 51. Rb2 {[%emt 0:00:02]} Nxf3+ {[%emt 0:00:06]} 52. Rxf3 {[%emt 0:00:01]} Kg8 {[%emt 0:00:03]} 53. Rfb3 {[%emt 0:00:01]} Rd7 {[%emt 0:00:02]} 54. Qf3 {[%emt 0:00:05]} Qe1 {[%emt 0:00:01]} 55. Re2 {[%emt 0:00:02]} Qa5 {[%emt 0:00:01]} 56. Re8+ {[%emt 0:00:01]} Kf7 {[%emt 0:00:02]} 57. Rbe3 {[%emt 0:00:02]} Qd5 {[%emt 0:00:02]} 58. Qe2 {[%emt 0:00:02]} Rxa2 {[%emt 0:00:01]} 59. R3e7+ {[%emt 0:00:05]} Rxe7 {[%emt 0:00:02]} 60. Rxe7+ {[%emt 0:00:01]} Kf8 {[%emt 0:00:00]} 61. Re8+ {[%emt 0:00:01]} Kf7 {[%emt 0:00:01]} 62. Re7+ {[%emt 0:00:02]} Kg8 {[%emt 0:00:01]} 0-1

[Event "RUS-ch Women Blitz 2019"]
[Site "Sochi"]
[Date "2019.10.17"]
[Round "3.12"]
[White "Mukhina, Jana"]
[Black "Murashova, Ekaterina"]
[Result "0-1"]
[ECO "B27"]
[WhiteElo "2105"]
[BlackElo "2248"]
[Annotator "NA"]
[PlyCount "96"]
[EventDate "2019.10.17"]
[EventType "swiss"]
[EventCountry "RUS"]
[SourceTitle "playchess.com"]
[Source "ChessBase"]
[SourceQuality "1"]
[TimeControl "180+2"]

1. e4 {[%emt 0:00:00]} c5 {[%emt 0:00:00]} 2. Nf3 {[%emt 0:00:00]} g6 {[%emt 0:00:00]} 3. c3 {[%emt 0:00:00]} Bg7 {[%emt 0:00:00]} 4. d4 {[%emt 0:00:01]} cxd4 {[%emt 0:00:00]} 5. cxd4 d5 6. e5 {[%emt 0:00:01]} Nh6 {[%emt 0:00:01]} 7. Bf4 {[%emt 0:00:15]} Bg4 {[%emt 0:00:52]} 8. Bb5+ {[%emt 0:00:11]} Nc6 {[%emt 0:00:02]} 9. Bxc6+ {[%emt 0:00:02]} bxc6 {[%emt 0:00:00]} 10. Nbd2 {[%emt 0:00:01]} O-O {[%emt 0:00:09]} 11. h3 {[%emt 0:00:02]} Bd7 {[%emt 0:00:06]} 12. Nb3 {[%emt 0:00:06]} f6 {[%emt 0:00:05]} 13. Bxh6 {[%emt 0:00:20]} Bxh6 {[%emt 0:00:04]} 14. O-O {[%emt 0:00:01]} Rb8 {[%emt 0:00:07]} 15. Nc5 {[%emt 0:00:02]} Rxb2 {[%emt 0:00:10]} 16. Qa4 {[%emt 0:00:13]} a5 {[%emt 0:00:20]} 17. e6 {[%emt 0:00:07]} Be8 {[%emt 0:00:06]} 18. Rab1 {[%emt 0:00:08]} Qb6 {[%emt 0:00:01]} 19. Rxb2 {[%emt 0:00:14]} Qxb2 {[%emt 0:00:01]} 20. Qxa5 {[%emt 0:00:01]} Bf4 {[%emt 0:00:06]} 21. a4 {[%emt 0:00:35]} Bd6 {[%emt 0:00:00]} 22. Qa7 {[%emt 0:00:16]} g5 {[%emt 0:00:03]} 23. a5 {[%emt 0:00:06]} Bh5 {[%emt 0:00:01]} 24. Nh2 {[%emt 0:00:09]} Qxd4 {[%emt 0:00:05]} 25. Nf3 {[%emt 0:00:56]} Bxf3 {[%emt 0:00:03]} 26. gxf3 {[%emt 0:00:00]} Bxc5 {[%emt 0:00:11]} 27. Qc7 {[%emt 0:00:03]} Bd6 {[%emt 0:00:04]} 28. Qxc6 Qf4 {[%emt 0:00:03]} 29. Rd1 {[%emt 0:00:02]} Qxf3 {[%emt 0:00:08]} 30. Qxd5 {[%emt 0:00:02]} Qxh3 {[%emt 0:00:18]} 31. Qg2 {[%emt 0:00:03]} Qxg2+ {[%emt 0:00:09]} 32. Kxg2 {[%emt 0:00:00]} Ra8 {[%emt 0:00:01]} 33. Ra1 {[%emt 0:00:02]} f5 {[%emt 0:00:01]} 34. a6 {[%emt 0:00:01]} Ra7 {[%emt 0:00:02]} 35. Ra4 {[%emt 0:00:04]} Kg7 {[%emt 0:00:02]} 36. Kf3 {[%emt 0:00:03]} Kf6 {[%emt 0:00:00]} 37. Ke3 {[%emt 0:00:03]} Kxe6 {[%emt 0:00:03]} 38. Kd4 {[%emt 0:00:01]} h5 {[%emt 0:00:03]} 39. Kc4 {[%emt 0:00:01]} h4 {[%emt 0:00:04]} 40. Kb5 {[%emt 0:00:01]} Bc7 {[%emt 0:00:07]} 41. Kc6 {[%emt 0:00:05]} h3 {[%emt 0:00:04]} 42. f3 {[%emt 0:00:02]} h2 {[%emt 0:00:03]} 43. Ra1 {[%emt 0:00:01]} Rxa6+ {[%emt 0:00:06]} 44. Rxa6 {[%emt 0:00:02]} h1=Q {[%emt 0:00:04]} 45. Kxc7+ {[%emt 0:00:02]} Ke5 {[%emt 0:00:07]} 46. Ra5+ {[%emt 0:00:01]} Kf4 {[%emt 0:00:00]} 47. Kd7 {[%emt 0:00:03]} Qd1+ {[%emt 0:00:04]} 48. Ke6 {[%emt 0:00:01]} Qe1+ {[%emt 0:00:01] Ke5+ Kxe5} 0-1

[Event "RUS-ch Women Blitz 2019"]
[Site "Sochi"]
[Date "2019.10.17"]
[Round "4.1"]
[White "Voit, Daria"]
[Black "Gritsayeva, Oksana"]
[Result "1-0"]
[ECO "A40"]
[WhiteElo "2336"]
[BlackElo "2370"]
[Annotator "NA"]
[PlyCount "81"]
[EventDate "2019.10.17"]
[EventType "swiss"]
[EventCountry "RUS"]
[SourceTitle "playchess.com"]
[Source "ChessBase"]
[SourceQuality "1"]
[TimeControl "180+2"]

1. d4 {[%emt 0:00:00]} g6 {[%emt 0:00:00]} 2. c4 {[%emt 0:00:09]} Bg7 {[%emt 0:00:00]} 3. Nf3 {[%emt 0:00:01]} c5 {[%emt 0:00:01]} 4. d5 {[%emt 0:00:04]} f5 {[%emt 0:00:01]} 5. Nc3 {[%emt 0:00:03]} Nf6 {[%emt 0:00:01]} 6. Qc2 {[%emt 0:00:13]} d6 {[%emt 0:00:03]} 7. e4 {[%emt 0:00:02]} fxe4 {[%emt 0:00:02]} 8. Nxe4 {[%emt 0:00:01]} Nxe4 {[%emt 0:00:11]} 9. Qxe4 {[%emt 0:00:02]} Nd7 {[%emt 0:00:01]} 10. Bd3 {[%emt 0:00:07]} Nf6 {[%emt 0:00:02]} 11. Qe2 {[%emt 0:00:04]} Bg4 {[%emt 0:00:07]} 12. h3 {[%emt 0:00:02]} Bxf3 {[%emt 0:00:04]} 13. Qxf3 {[%emt 0:00:01]} O-O {[%emt 0:00:03]} 14. O-O {[%emt 0:00:11]} a6 {[%emt 0:00:03]} 15. Re1 {[%emt 0:00:15]} Rb8 {[%emt 0:00:11]} 16. Qe2 {[%emt 0:00:02]} Nd7 {[%emt 0:00:27]} 17. Qxe7 {[%emt 0:00:27]} Qxe7 {[%emt 0:00:04]} 18. Rxe7 {[%emt 0:00:01]} Ne5 {[%emt 0:00:04]} 19. Be2 {[%emt 0:00:07]} b5 {[%emt 0:00:05]} 20. cxb5 {[%emt 0:00:08]} axb5 {[%emt 0:00:02]} 21. a4 {[%emt 0:00:29]} bxa4 {[%emt 0:00:10]} 22. Rxa4 {[%emt 0:00:01]} Nf7 {[%emt 0:00:20]} 23. Raa7 {[%emt 0:00:28]} Rbe8 {[%emt 0:00:26]} 24. Bg4 {[%emt 0:00:05]} Rxe7 {[%emt 0:00:05]} 25. Rxe7 {[%emt 0:00:02]} Ne5 {[%emt 0:00:06]} 26. Re6 {[%emt 0:00:14]} Nxg4 {[%emt 0:00:21]} 27. hxg4 {[%emt 0:00:01]} Bd4 {[%emt 0:00:08]} 28. Be3 {[%emt 0:00:08]} Bxe3 {[%emt 0:00:05]} 29. fxe3 {[%emt 0:00:04]} Rd8 {[%emt 0:00:09]} 30. Kf2 {[%emt 0:00:09]} Kf7 {[%emt 0:00:01]} 31. g5 {[%emt 0:00:03]} Rd7 {[%emt 0:00:11]} 32. e4 {[%emt 0:00:05]} Rd8 {[%emt 0:00:03]} 33. Ke3 {[%emt 0:00:03]} Rd7 {[%emt 0:00:01]} 34. Kd3 {[%emt 0:00:01]} Rd8 {[%emt 0:00:12]} 35. Kc4 {[%emt 0:00:01]} Rd7 {[%emt 0:00:04]} 36. b3 {[%emt 0:00:07]} Rd8 {[%emt 0:00:05]} 37. Kb5 {[%emt 0:00:02]} Rb8+ {[%emt 0:00:01]} 38. Kc6 {[%emt 0:00:03]} Rxb3 {[%emt 0:00:03]} 39. Kxd6 {[%emt 0:00:03]} c4 {[%emt 0:00:10]} 40. Re7+ {[%emt 0:00:02]} Kf8 {[%emt 0:00:07]} 41. Rxh7 {[%emt 0:00:02]} 1-0

[Event "RUS-ch Women Blitz 2019"]
[Site "Sochi"]
[Date "2019.10.17"]
[Round "4.2"]
[White "Lysenko, Margarita"]
[Black "Semenova, Elena"]
[Result "0-1"]
[ECO "E20"]
[WhiteElo "2243"]
[BlackElo "2282"]
[Annotator "NA"]
[PlyCount "68"]
[EventDate "2019.10.17"]
[EventType "swiss"]
[EventCountry "RUS"]
[SourceTitle "playchess.com"]
[Source "ChessBase"]
[SourceQuality "1"]
[TimeControl "180+2"]

1. d4 {[%emt 0:00:00]} Nf6 {[%emt 0:00:00]} 2. c4 {[%emt 0:00:01]} e6 {[%emt 0:00:00]} 3. Nc3 {[%emt 0:00:01]} Bb4 {[%emt 0:00:00]} 4. f3 {[%emt 0:00:01]} c5 {[%emt 0:00:04]} 5. d5 {[%emt 0:00:01]} b5 {[%emt 0:00:02]} 6. e4 {[%emt 0:00:03]} O-O {[%emt 0:00:06]} 7. Nh3 {[%emt 0:00:13]} bxc4 {[%emt 0:00:06]} 8. Bxc4 {[%emt 0:00:02]} exd5 {[%emt 0:00:02]} 9. Bxd5 {[%emt 0:00:03]} Nxd5 {[%emt 0:00:06]} 10. Qxd5 {[%emt 0:00:11]} Qh4+ {[%emt 0:00:30]} 11. Nf2 {[%emt 0:00:07]} Nc6 {[%emt 0:00:04]} 12. O-O {[%emt 0:00:14]} Ba6 {[%emt 0:00:09]} 13. Rd1 {[%emt 0:00:41]} Nd4 {[%emt 0:00:04]} 14. Bg5 {[%emt 0:00:33]} Qh5 {[%emt 0:00:13]} 15. Be7 {[%emt 0:00:25]} Qxd5 {[%emt 0:00:24]} 16. Nxd5 {[%emt 0:00:02]} Ne2+ {[%emt 0:00:28]} 17. Kh1 {[%emt 0:00:01]} Rfc8 {[%emt 0:00:09]} 18. Nxb4 {[%emt 0:00:26]} cxb4 {[%emt 0:00:01]} 19. Bxb4 {[%emt 0:00:03]} Rab8 {[%emt 0:00:05]} 20. a3 {[%emt 0:00:22]} Bb5 {[%emt 0:00:05]} 21. Nd3 {[%emt 0:00:05]} Rc2 {[%emt 0:00:11]} 22. Ne5 {[%emt 0:00:03]} Rxb2 {[%emt 0:00:18]} 23. Bd6 {[%emt 0:00:04]} Rc8 {[%emt 0:00:05]} 24. Bb4 {[%emt 0:00:03]} Nf4 {[%emt 0:00:08]} 25. Nxd7 {[%emt 0:00:01]} Nxg2 {[%emt 0:00:10]} 26. Rac1 {[%emt 0:00:02]} Rxc1 {[%emt 0:00:10]} 27. Nf6+ {[%emt 0:00:01]} gxf6 {[%emt 0:00:01]} 28. Rxc1 {[%emt 0:00:00]} Nh4 {[%emt 0:00:06]} 29. Rg1+ {[%emt 0:00:03]} Ng6 {[%emt 0:00:04]} 30. h4 {[%emt 0:00:02]} h5 {[%emt 0:00:03]} 31. Rc1 {[%emt 0:00:02]} Kh7 {[%emt 0:00:01]} 32. Rc7 {[%emt 0:00:01]} Ne5 {[%emt 0:00:02]} 33. f4 {[%emt 0:00:01]} Nf3 {[%emt 0:00:01]} 34. Rxf7+ {[%emt 0:00:02]} Kg6 {[%emt 0:00:00]} 0-1

[Event "RUS-ch Women Blitz 2019"]
[Site "Sochi"]
[Date "2019.10.17"]
[Round "4.3"]
[White "Borisova, Ekaterina"]
[Black "Kovanova, Baira"]
[Result "0-1"]
[ECO "A62"]
[WhiteElo "2347"]
[BlackElo "2344"]
[Annotator "NA"]
[PlyCount "78"]
[EventDate "2019.10.17"]
[EventType "swiss"]
[EventCountry "RUS"]
[SourceTitle "playchess.com"]
[Source "ChessBase"]
[SourceQuality "1"]
[TimeControl "180+2"]

1. d4 {[%emt 0:00:00]} Nf6 {[%emt 0:00:00]} 2. g3 {[%emt 0:00:00]} e6 {[%emt 0:00:01]} 3. c4 {[%emt 0:00:02]} c5 {[%emt 0:00:02]} 4. d5 {[%emt 0:00:01]} exd5 {[%emt 0:00:02]} 5. cxd5 {[%emt 0:00:00]} d6 {[%emt 0:00:01]} 6. Nc3 {[%emt 0:00:02]} g6 {[%emt 0:00:02]} 7. Bg2 {[%emt 0:00:00]} Bg7 {[%emt 0:00:01]} 8. Nf3 {[%emt 0:00:01]} O-O {[%emt 0:00:01]} 9. O-O {[%emt 0:00:01]} a6 {[%emt 0:00:01]} 10. a4 {[%emt 0:00:01]} Re8 {[%emt 0:00:02]} 11. Bf4 {[%emt 0:00:01]} Qe7 {[%emt 0:00:19]} 12. Qd2 {[%emt 0:00:05]} Qf8 {[%emt 0:00:13]} 13. Rfe1 {[%emt 0:00:22]} Nh5 {[%emt 0:00:09]} 14. Bg5 {[%emt 0:00:04]} h6 {[%emt 0:00:02]} 15. Be3 {[%emt 0:00:01]} Nf6 {[%emt 0:00:14]} 16. h3 {[%emt 0:00:06]} g5 {[%emt 0:00:20]} 17. Qc2 {[%emt 0:00:34]} Nbd7 {[%emt 0:00:11]} 18. Nd2 {[%emt 0:00:05]} Ne5 {[%emt 0:00:05]} 19. Rab1 {[%emt 0:00:16]} Bd7 {[%emt 0:00:30]} 20. b4 {[%emt 0:00:04]} b6 {[%emt 0:00:02]} 21. bxc5 {[%emt 0:00:07]} bxc5 {[%emt 0:00:01]} 22. Rb6 {[%emt 0:00:11]} Qe7 {[%emt 0:00:31]} 23. Reb1 {[%emt 0:00:06]} Red8 {[%emt 0:00:09]} 24. Rb7 {[%emt 0:00:24]} Ne8 {[%emt 0:00:14]} 25. Be4 {[%emt 0:00:33]} Qf6 {[%emt 0:00:05]} 26. R1b3 {[%emt 0:00:11]} Bxh3 {[%emt 0:00:02]} 27. Bg2 {[%emt 0:00:09]} Bf5 {[%emt 0:00:07]} 28. Nce4 {[%emt 0:00:02]} Qg6 {[%emt 0:00:02]} 29. R3b6 {[%emt 0:00:10]} Nf6 {[%emt 0:00:05]} 30. Nxf6+ {[%emt 0:00:03]} Qxf6 {[%emt 0:00:02]} 31. Qb3 {[%emt 0:00:04]} Ng4 {[%emt 0:00:06]} 32. Nc4 {[%emt 0:00:04]} Bg6 {[%emt 0:00:08]} 33. a5 {[%emt 0:00:04]} Re8 {[%emt 0:00:05]} 34. Rxd6 {[%emt 0:00:02]} Rxe3 {[%emt 0:00:04]} 35. fxe3 {[%emt 0:00:09]} Qf2+ {[%emt 0:00:01]} 36. Kh1 {[%emt 0:00:01]} Qxg3 {[%emt 0:00:02]} 37. Kg1 {[%emt 0:00:02]} Qf2+ 38. Kh1 Qe1+ {[%emt 0:00:02]} 39. Bf1 {[%emt 0:00:04]} Qxf1# {[%emt 0:00:01]} 0-1

[Event "RUS-ch Women Blitz 2019"]
[Site "Sochi"]
[Date "2019.10.20"]
[Round "4.3"]
[White "Obolentseva, Alexandra"]
[Black "Lukina, Aleksandra"]
[Result "1-0"]
[ECO "E94"]
[WhiteElo "2111"]
[BlackElo "1937"]
[Annotator "NA"]
[PlyCount "55"]
[EventDate "2019.10.17"]
[EventType "swiss"]
[EventCountry "RUS"]
[SourceTitle "playchess.com"]
[Source "ChessBase"]
[SourceQuality "1"]
[TimeControl "180+2"]

1. d4 {[%emt 0:00:02]} Nf6 {[%emt 0:00:00]} 2. c4 {[%emt 0:00:01]} g6 {[%emt 0:00:00]} 3. Nc3 {[%emt 0:00:01]} Bg7 {[%emt 0:00:01]} 4. e4 {[%emt 0:00:02]} d6 {[%emt 0:00:00]} 5. Nf3 {[%emt 0:00:01]} O-O {[%emt 0:00:02]} 6. Be2 {[%emt 0:00:01]} e5 {[%emt 0:00:03]} 7. O-O {[%emt 0:00:02]} exd4 {[%emt 0:00:01]} 8. Nxd4 {[%emt 0:00:02]} c6 {[%emt 0:00:01]} 9. f3 {[%emt 0:00:14]} Re8 {[%emt 0:00:01]} 10. Kh1 {[%emt 0:00:04]} Nh5 {[%emt 0:00:04]} 11. g4 {[%emt 0:00:01]} Nf6 {[%emt 0:00:01]} 12. Bf4 {[%emt 0:00:02]} h5 {[%emt 0:00:14]} 13. Nf5 {[%emt 0:00:01]} Bxf5 {[%emt 0:00:27]} 14. gxf5 {[%emt 0:00:04]} Bf8 {[%emt 0:00:07]} 15. fxg6 {[%emt 0:00:11]} fxg6 {[%emt 0:00:01]} 16. Rg1 {[%emt 0:00:02]} Kh7 {[%emt 0:00:08]} 17. Bd3 {[%emt 0:00:01]} Nfd7 {[%emt 0:00:29]} 18. e5 {[%emt 0:00:15]} Re6 {[%emt 0:00:01]} 19. Qc2 {[%emt 0:00:20]} Qe8 {[%emt 0:00:15]} 20. Rxg6 {[%emt 0:00:04]} Rxg6 {[%emt 0:00:07]} 21. Rg1 {[%emt 0:00:02]} Nxe5 {[%emt 0:00:24]} 22. Bxe5 {[%emt 0:00:01]} Qxe5 {[%emt 0:00:07]} 23. Bxg6+ {[%emt 0:00:31]} Kh8 {[%emt 0:00:01]} 24. Ne4 {[%emt 0:00:17]} Bh6 {[%emt 0:00:22]} 25. Qd3 {[%emt 0:00:18]} Nd7 {[%emt 0:00:03]} 26. Nxd6 {[%emt 0:00:08]} Rf8 {[%emt 0:00:22]} 27. Nf7+ {[%emt 0:00:01]} Rxf7 {[%emt 0:00:11]} 28. Bxf7 {[%emt 0:00:02]} 1-0

[Event "RUS-ch Women Blitz 2019"]
[Site "Sochi"]
[Date "2019.10.17"]
[Round "4.4"]
[White "Bykova, Anastasia"]
[Black "Garifullina, Leya"]
[Result "1-0"]
[ECO "E16"]
[WhiteElo "2247"]
[BlackElo "2330"]
[Annotator "NA"]
[PlyCount "131"]
[EventDate "2019.10.17"]
[EventType "swiss"]
[EventCountry "RUS"]
[SourceTitle "playchess.com"]
[Source "ChessBase"]
[SourceQuality "1"]
[TimeControl "180+2"]

1. d4 {[%emt 0:00:00]} Nf6 {[%emt 0:00:00]} 2. c4 {[%emt 0:00:00]} e6 {[%emt 0:00:00]} 3. Nf3 {[%emt 0:00:01]} b6 {[%emt 0:00:00]} 4. g3 {[%emt 0:00:00]} Bb7 {[%emt 0:00:01]} 5. Bg2 {[%emt 0:00:01]} Bb4+ {[%emt 0:00:01]} 6. Bd2 {[%emt 0:00:01]} Be7 {[%emt 0:00:01]} 7. O-O {[%emt 0:00:01]} O-O {[%emt 0:00:01]} 8. Nc3 c6 9. e4 {[%emt 0:00:03]} d5 {[%emt 0:00:01]} 10. e5 {[%emt 0:00:02]} Ne4 {[%emt 0:00:01]} 11. cxd5 {[%emt 0:00:04]} cxd5 {[%emt 0:00:01]} 12. Qb3 {[%emt 0:00:09]} Nxd2 {[%emt 0:00:04]} 13. Nxd2 {[%emt 0:00:01]} Nc6 {[%emt 0:00:02]} 14. Qa4 {[%emt 0:00:08]} a6 {[%emt 0:00:02]} 15. Nf3 {[%emt 0:00:19]} b5 {[%emt 0:00:01]} 16. Qd1 {[%emt 0:00:03]} Qb6 {[%emt 0:00:02]} 17. Qd2 {[%emt 0:00:03]} a5 {[%emt 0:00:05]} 18. Rfc1 {[%emt 0:00:03]} Rfc8 {[%emt 0:00:02]} 19. h4 {[%emt 0:00:03]} h6 {[%emt 0:00:03]} 20. Bf1 {[%emt 0:00:03]} Ba6 {[%emt 0:00:04]} 21. Bd3 {[%emt 0:00:03]} Qb7 {[%emt 0:00:03]} 22. Qe3 {[%emt 0:00:29]} b4 {[%emt 0:00:04]} 23. Na4 {[%emt 0:00:01]} Bxd3 24. Qxd3 {[%emt 0:00:01]} Na7 {[%emt 0:00:20]} 25. Nd2 {[%emt 0:00:34]} Rxc1+ {[%emt 0:00:22]} 26. Rxc1 {[%emt 0:00:01]} Rc8 {[%emt 0:00:01]} 27. Rxc8+ {[%emt 0:00:11]} Qxc8 {[%emt 0:00:01]} 28. Nb3 {[%emt 0:00:01]} Bd8 {[%emt 0:00:01]} 29. Nbc5 {[%emt 0:00:04]} Qc6 {[%emt 0:00:03]} 30. b3 {[%emt 0:00:13]} Bb6 {[%emt 0:00:05]} 31. Kf1 {[%emt 0:00:10]} Bxc5 {[%emt 0:00:02]} 32. Nxc5 {[%emt 0:00:01]} Nb5 {[%emt 0:00:03]} 33. Ke1 {[%emt 0:00:06]} Nc3 {[%emt 0:00:02]} 34. a4 {[%emt 0:00:00]} h5 {[%emt 0:00:21]} 35. f3 {[%emt 0:00:07]} g6 {[%emt 0:00:02]} 36. Qa6 {[%emt 0:00:08]} Qxa6 {[%emt 0:00:10]} 37. Nxa6 {[%emt 0:00:01]} Kg7 {[%emt 0:00:08]} 38. Nc5 {[%emt 0:00:02]} Kh6 {[%emt 0:00:04]} 39. Nb7 {[%emt 0:00:04]} g5 {[%emt 0:00:01]} 40. hxg5+ {[%emt 0:00:06]} Kxg5 {[%emt 0:00:01]} 41. Nxa5 {[%emt 0:00:01]} h4 {[%emt 0:00:02]} 42. gxh4+ {[%emt 0:00:02]} Kxh4 {[%emt 0:00:01]} 43. Nc6 {[%emt 0:00:07]} Kg3 {[%emt 0:00:02]} 44. Nxb4 {[%emt 0:00:06]} Kxf3 {[%emt 0:00:01]} 45. Kd2 {[%emt 0:00:03]} Ne4+ {[%emt 0:00:03]} 46. Kd3 {[%emt 0:00:01]} Nf2+ {[%emt 0:00:01]} 47. Kc3 {[%emt 0:00:04]} Ne4+ {[%emt 0:00:03]} 48. Kc2 {[%emt 0:00:03]} Ke3 {[%emt 0:00:01]} 49. Nc6 {[%emt 0:00:01]} f5 {[%emt 0:00:08]} 50. exf6 {[%emt 0:00:01]} Nxf6 {[%emt 0:00:01]} 51. a5 {[%emt 0:00:01]} Nd7 {[%emt 0:00:01]} 52. a6 {[%emt 0:00:01]} Nb6 {[%emt 0:00:01]} 53. Kc3 {[%emt 0:00:03]} Ke4 {[%emt 0:00:02]} 54. Ne5 {[%emt 0:00:03]} Na8 {[%emt 0:00:03]} 55. Nd7 {[%emt 0:00:03]} Nc7 {[%emt 0:00:03]} 56. a7 {[%emt 0:00:04]} Na8 {[%emt 0:00:00]} 57. Nc5+ {[%emt 0:00:05]} Kf5 {[%emt 0:00:02]} 58. Nd7 {[%emt 0:00:18]} e5 {[%emt 0:00:07]} 59. Nxe5 {[%emt 0:00:02]} Ke6 {[%emt 0:00:01]} 60. Kb4 {[%emt 0:00:02]} Kd6 {[%emt 0:00:01]} 61. Kb5 {[%emt 0:00:02]} Kc7 {[%emt 0:00:02]} 62. Ka6 {[%emt 0:00:02]} Nb6 {[%emt 0:00:03]} 63. Nd3 {[%emt 0:00:02]} Na8 {[%emt 0:00:01]} 64. Nf4 {[%emt 0:00:01]} Kc6 {[%emt 0:00:02]} 65. Ne6 {[%emt 0:00:07]} Kd7 {[%emt 0:00:02]} 66. Kb7 {[%emt 0:00:02]} 1-0